fUSD/lending_fUSD_20250607
["ID","MTS","AMOUNT","RATE_DAILY","PERIOD"]
[364944345,1749331838264,-151.0,0.00019395,2]
[364944347,1749331838273,-151.0,0.00019395,2]
[364944349,1749331838282,-198.538651,0.00019395,2]
[364944351,1749331838291,-200.0,0.00019395,2]
[364944352,1749331838300,-151.0,0.00019395,2]
[364944353,1749331838310,-151.0,0.00019395,2]
[364944355,1749331838319,-24691.0959999,0.00019395,2]
[364944357,1749331838329,-356.771767,0.00019395,2]
[364944359,1749331838339,-356.771767,0.00019395,2]
[364944361,1749331838348,-356.771767,0.00019395,2]
[364944363,1749331838358,-356.771767,0.00019395,2]
[364944364,1749331838367,-151.0,0.00019395,2]
[364944366,1749331838377,-151.0,0.00019395,2]
[364944368,1749331838386,-151.0,0.00019395,2]
[364944370,1749331838396,-151.0,0.00019395,2]
[364944372,1749331838405,-151.0,0.00019395,2]
[364944374,1749331838415,-291.98585,0.00019395,2]
[364944375,1749331838425,-9910.6500695,0.00019395,2]
[364944377,1749331838434,-1472.1021872,0.00019395,2]
[364944379,1749331838443,-40717.3960273,0.00019395,2]
[364944381,1749331838453,-151.0,0.00019395,2]
[364944382,1749331838462,-151.0,0.00019395,2]
[364944383,1749331838472,-4721.8936023,0.00019395,2]
[364944384,1749331838481,-151.0,0.00019395,2]
[364944385,1749331838491,-230.248488,0.00019395,2]
[364944386,1749331838500,-294.930396,0.00019395,2]
[364944387,1749331838510,-294.930396,0.00019395,2]
[364944388,1749331838519,-6063.8623319,0.00019395,2]
[364944389,1749331838529,-7531.58069611,0.000194,2]
[364944390,1749331838539,-151.0,0.000194,2]
[364944391,1749331838549,-150.0,0.000194,2]
[364944392,1749331838558,-151.0,0.000194,2]
[364944393,1749331838569,-572.79025593,0.000194,2]
[364944394,1749331838578,-150.0,0.000194,2]
[364944395,1749331838589,-150.0,0.000194,2]
[364944396,1749331838605,-3632.02506562,0.000194,2]
[364944397,1749331838615,-38100.91730854,0.000194,2]
[364944398,1749331838626,-151.0,0.000194,2]
[364944399,1749331838637,-151.0,0.000194,2]
[364944400,1749331838646,-151.0,0.000194,2]
[364944401,1749331838656,-376.0,0.000194,2]
[364944402,1749331838665,-768.0,0.000194,2]
[364944403,1749331838678,-151.0,0.000194,2]
[364944404,1749331838688,-356.771767,0.000194,2]
[364944405,1749331838698,-356.771767,0.000194,2]
[364944406,1749331838708,-151.0,0.000194,2]
[364944407,1749331838719,-237.0,0.000194,2]
[364944408,1749331838729,-151.0,0.000194,2]
[364944409,1749331838740,-151.0,0.000194,2]
[364944410,1749331838750,-151.0,0.000194,2]
[364944411,1749331838759,-254.650554,0.000194,2]
[364944412,1749331838769,-294.930396,0.000194,2]
[364944413,1749331838778,-294.930396,0.000194,2]
[364944414,1749331838788,-294.930396,0.000194,2]
[364944415,1749331838798,-294.930396,0.000194,2]
[364944416,1749331838807,-303.02,0.00019408,2]
[364944417,1749331838817,-151.0,0.00019409,2]
[364944418,1749331838827,-235.0,0.00019409,2]
[364944419,1749331838836,-151.0,0.00019409,2]
[364944420,1749331838846,-151.0,0.00019409,2]
[364944421,1749331838855,-151.0,0.00019409,2]
[364944422,1749331838864,-151.0,0.00019409,2]
[364944423,1749331838873,-170.43831055,0.00019422,2]
[364944424,1749331838883,-150.0,0.00019422,2]
[364944425,1749331838893,-3366.14369101,0.00019426,2]
[364944426,1749331838903,-151.0,0.00019443,2]
[364944427,1749331838912,-290.774772,0.00019443,2]
[364944428,1749331838922,-300.78,0.00019443,2]
[364944429,1749331838931,-300.3,0.00019444,2]
[364944430,1749331838941,-303.29,0.00019444,2]
[364944431,1749331838951,-334.73479836,0.00019446,2]
[364944432,1749331838960,-300.99,0.00019463,2]
[364944433,1749331838970,-303.84,0.00019463,2]
[364944434,1749331838980,-300.82,0.00019463,2]
[364944435,1749331838989,-305.84,0.00019463,2]
[364944436,1749331838999,-303.6,0.00019464,2]
[364944437,1749331839009,-303.86,0.00019464,2]
[364944438,1749331839019,-304.32,0.00019464,2]
[364944439,1749331839029,-302.92,0.00019464,2]
[364944440,1749331839038,-3366.14369101,0.00019492,2]
[364944441,1749331839048,-151.0,0.00019493,2]
[364944442,1749331839058,-150.0,0.000195,7]
[364944443,1749331839068,-151.0,0.00019522,2]
[364944444,1749331839077,-151.0,0.00019522,2]
[364944445,1749331839087,-151.0,0.00019538,2]
[364944446,1749331839097,-300.88,0.00019549,2]
[364944447,1749331839108,-300.38,0.00019549,2]
[364944448,1749331839119,-303.24,0.00019549,2]
[364944449,1749331839128,-300.83,0.00019549,2]
[364944450,1749331839137,-304.09,0.00019549,2]
[364944451,1749331839147,-304.16,0.00019549,2]
[364944452,1749331839157,-151.0,0.00019551,2]
[364944453,1749331839167,-151.0,0.00019551,2]
[364944454,1749331839177,-454.65,0.00019552,2]
[364944455,1749331839187,-151.0,0.00019552,2]
[364944456,1749331839198,-151.0,0.00019552,2]
[364944457,1749331839208,-151.0,0.00019552,2]
[364944458,1749331839220,-3366.14369101,0.00019557,2]
[364944459,1749331839230,-161.14916716,0.00019562,2]
[364944460,1749331839240,-303.37,0.00019564,2]
[364944461,1749331839252,-151.0,0.00019565,2]
[364944462,1749331839261,-480.32,0.00019565,2]
[364944463,1749331839271,-151.0,0.00019566,2]
[364944464,1749331839282,-151.0,0.00019566,2]
[364944465,1749331839294,-151.0,0.00019566,2]
[364944466,1749331839303,-151.0,0.00019566,2]
[364944467,1749331839313,-151.0,0.00019566,2]
[364944468,1749331839322,-151.0,0.00019579,2]
[364944469,1749331839332,-151.0,0.00019579,2]
[364944471,1749331839341,-170.43831055,0.00019581,2]
[364944472,1749331839351,-600.0,0.00019581,4]
[364944473,1749331839360,-720.29291272,0.00019594,2]
[364944474,1749331839370,-529.21938588,0.00019595,2]
[364944475,1749331839379,-86419.56099389,0.00019595,2]
[364944476,1749331839388,-151.0,0.00019595,2]
[364944477,1749331839398,-151.0,0.00019595,2]
[364944479,1749331839408,-151.0,0.00019595,2]
[364944480,1749331839417,-151.0,0.00019595,2]
[364944481,1749331839426,-151.0,0.00019595,2]
[364944482,1749331839436,-151.0,0.00019595,2]
[364944483,1749331839446,-356.771767,0.00019595,2]
[364944484,1749331839456,-356.771767,0.00019595,2]
[364944485,1749331839467,-151.0,0.00019595,2]
[364944486,1749331839477,-218.55470237,0.00019595,3]
[364944487,1749331839487,-24135.99657988,0.00019595,2]
[364944488,1749331839497,-4024.59392421,0.00019595,2]
[364944489,1749331839507,-151.0,0.00019595,2]
[364944490,1749331839516,-188.15470625,0.00019595,2]
[364944491,1749331839526,-294.930396,0.00019595,2]
[364944492,1749331839536,-294.930396,0.00019595,2]
[364944493,1749331839546,-334.73479836,0.00019598,2]
[364944494,1749331839557,-1000.0,0.00019599,2]
[364944495,1749331839567,-1000.0,0.00019599,2]
[364944496,1749331839577,-1616.27433465,0.000196,5]
[364944497,1749331839587,-3507.4,0.000196,2]
[364944498,1749331839601,-151.0,0.000196,2]
[364944499,1749331839610,-2600.0,0.000196,7]
[364944500,1749331839621,-151.0,0.00019606,2]
[364944501,1749331839631,-151.0,0.00019616,2]
[364944502,1749331839642,-151.0,0.00019616,2]
[364944503,1749331839654,-3366.14369101,0.00019623,2]
[364944504,1749331839664,-151.0,0.00019623,2]
[364944505,1749331839674,-151.0,0.0001967,2]
[364944506,1749331839684,-500.0,0.00019673,2]
[364944507,1749331839694,-500.0,0.00019673,2]
[364944508,1749331839703,-500.0,0.00019673,2]
[364944509,1749331839712,-500.0,0.00019673,2]
[364944510,1749331839722,-228.24287885,0.00019673,2]
[364944511,1749331839733,-500.0,0.00019673,2]
[364944512,1749331839742,-502.85689804,0.00019673,2]
[364944513,1749331839753,-500.0,0.00019673,2]
[364944514,1749331839763,-356.771767,0.00019673,2]
[364944515,1749331839773,-356.771767,0.00019673,2]
[364944516,1749331839782,-349.65465061,0.0001968,2]
[364944517,1749331839792,-152.23,0.00019685,2]
[364944518,1749331839802,-155.86872249,0.00019685,2]
[364944519,1749331839812,-3366.14369101,0.00019688,2]
[364944520,1749331839822,-150.0,0.00019694,2]
[364944521,1749331839831,-812124.23404277,0.00019695,7]
[364944522,1749331839842,-151.0,0.00019695,2]
[364944523,1749331839851,-151.0,0.00019695,2]
[364944524,1749331839862,-249.729441,0.00019695,2]
[364944525,1749331839872,-151.0,0.00019695,2]
[364944526,1749331839882,-151.0,0.00019695,2]
[364944527,1749331839892,-279.223818,0.00019695,2]
[364944528,1749331839902,-225.695554,0.00019695,2]
[364944529,1749331839911,-356.771767,0.00019695,2]
[364944530,1749331839921,-356.771767,0.00019695,2]
[364944531,1749331839931,-151.0,0.00019695,2]
[364944532,1749331839941,-151.0,0.00019695,2]
[364944533,1749331839950,-294.930396,0.00019695,2]
[364944534,1749331839962,-294.930396,0.00019695,2]
[364944535,1749331839972,-484.65,0.000197,2]
[364944536,1749331839982,-2366.0,0.000197,2]
[364944537,1749331839991,-500.0,0.000197,7]
[364944538,1749331840001,-156.587,0.00019732,2]
[364944539,1749331840011,-668.65185757,0.00019732,2]
[364944540,1749331840021,-215.0738,0.00019732,2]
[364944541,1749331840031,-170.43831055,0.00019741,2]
[364944543,1749331840041,-24135.99657988,0.00019748,2]
[364944545,1749331840050,-4024.5939242,0.00019748,2]
[364944547,1749331840060,-188.15470623,0.00019748,2]
[364944549,1749331840070,-334.73479836,0.00019749,2]
[364944551,1749331840079,-3366.14369101,0.00019754,2]
[364944552,1749331840089,-200.0,0.0001977,5]
[364944554,1749331840099,-161.14916716,0.00019781,2]
[364944556,1749331840109,-2000.0,0.000198,2]
[364944558,1749331840119,-2000.0,0.000198,2]
[364944561,1749331840128,-2000.0,0.000198,2]
[364944563,1749331840138,-2000.0,0.000198,2]
[364944564,1749331840147,-2000.0,0.000198,2]
[364944566,1749331840157,-2000.0,0.000198,2]
[364944568,1749331840167,-2000.0,0.000198,2]
[364944569,1749331840177,-2000.0,0.000198,2]
[364944570,1749331840186,-2000.0,0.000198,2]
[364944571,1749331840196,-2000.0,0.000198,2]
[364944572,1749331840205,-2000.0,0.000198,2]
[364944573,1749331840214,-2000.0,0.000198,2]
[364944574,1749331840223,-2000.0,0.000198,2]
[364944575,1749331840233,-2000.0,0.000198,2]
[364944576,1749331840242,-2000.0,0.000198,2]
[364944577,1749331840252,-2000.0,0.000198,2]
[364944578,1749331840262,-235.357262,0.000198,2]
[364944579,1749331840272,-201.860534,0.000198,2]
[364944580,1749331840281,-500.0,0.000198,7]
[364944581,1749331840291,-356.771767,0.000198,2]
[364944582,1749331840299,-356.771767,0.000198,2]
[364944583,1749331840309,-151.0,0.000198,2]
[364944584,1749331840318,-151.0,0.000198,2]
[364944585,1749331840327,-1500.0,0.000198,7]
[364944586,1749331840336,-1500.0,0.000198,7]
[364944587,1749331840345,-1500.0,0.000198,7]
[364944588,1749331840355,-1500.0,0.000198,7]
[364944589,1749331840364,-1500.0,0.000198,7]
[364944590,1749331840373,-1500.0,0.000198,7]
[364944591,1749331840382,-1500.0,0.000198,7]
[364944592,1749331840391,-1500.0,0.000198,7]
[364944593,1749331840401,-1500.0,0.000198,7]
[364944594,1749331840411,-1500.0,0.000198,7]
[364944595,1749331840421,-1500.0,0.000198,7]
[364944596,1749331840431,-1500.0,0.000198,7]
[364944597,1749331840440,-1500.0,0.000198,7]
[364944598,1749331840450,-763.462248,0.000198,7]
[364944599,1749331840460,-294.930396,0.000198,2]
[364944600,1749331840469,-294.930396,0.000198,2]
[364944601,1749331840478,-3366.14369101,0.00019819,2]
[364944602,1749331840487,-305.5,0.00019857,2]
[364944603,1749331840496,-301.41,0.00019857,2]
[364944604,1749331840506,-270.0,0.0001986,2]
[364944605,1749331840515,-170.61,0.0001986,2]
[364944606,1749331840524,-170.61,0.0001986,2]
[364944607,1749331840534,-170.61,0.0001986,2]
[364944608,1749331840543,-170.61,0.0001986,2]
[364944609,1749331840552,-170.61,0.0001986,2]
[364944610,1749331840562,-458.6,0.0001986,2]
[364944611,1749331840572,-553.4514308,0.0001987,2]
[364944612,1749331840583,-3366.14369101,0.00019885,2]
[364944613,1749331840597,-500.0,0.000199,2]
[364944614,1749331840609,-2000.0,0.000199,2]
[364944615,1749331840619,-55169.68126594,0.000199,7]
[364944616,1749331840630,-39719.05234486,0.000199,2]
[364944617,1749331840640,-500.0,0.000199,7]
[364944618,1749331840649,-334.73479836,0.000199,2]
[364944619,1749331840659,-356.771767,0.000199,2]
[364944620,1749331840860,-356.771767,0.000199,2]
[364944621,1749331840872,-151.0,0.000199,2]
[364944622,1749331840882,-170.43831055,0.000199,2]
[364944623,1749331840892,-151.0,0.000199,2]
[364944624,1749331840901,-24135.99657988,0.000199,2]
[364944625,1749331840911,-4024.5939242,0.000199,2]
[364944626,1749331840922,-188.15470623,0.000199,2]
[364944627,1749331840933,-294.930396,0.000199,2]
[364944628,1749331840943,-294.930396,0.000199,2]
[364944629,1749331840952,-176.17766556,0.000199,2]
[364944630,1749331840964,-302.23,0.00019908,2]
[364944631,1749331840973,-303.38,0.00019908,2]
[364944632,1749331840983,-1000.0,0.00019921,2]
[364944633,1749331840992,-300.68183345,0.00019921,2]
[364944634,1749331841002,-1000.0,0.00019921,2]
[364944635,1749331841011,-500.0,0.00019921,2]
[364944636,1749331841020,-1000.0,0.00019921,2]
[364944637,1749331841029,-1000.0,0.00019921,2]
[364944638,1749331841039,-356.771767,0.00019921,2]
[364944639,1749331841049,-356.771768,0.00019921,2]
[364944640,1749331841059,-151.0,0.00019921,2]
[364944641,1749331841069,-151.0,0.00019921,2]
[364944642,1749331841079,-294.930396,0.00019921,2]
[364944643,1749331841090,-294.930396,0.00019921,2]
[364944644,1749331841100,-802.72724827,0.0001997,2]
[364944645,1749331841109,-700.0,0.0001997,2]
[364944646,1749331841119,-700.0,0.0001997,2]
[364944647,1749331841129,-700.0,0.0001997,2]
[364944648,1749331841138,-400.0,0.0001997,2]
[364944649,1749331841148,-400.0,0.0001997,2]
[364944650,1749331841158,-500.0,0.0001997,2]
[364944651,1749331841167,-33977.3242666,0.00019972,2]
[364944652,1749331841178,-151.0,0.00019972,2]
[364944653,1749331841187,-294.930396,0.00019972,2]
[364944654,1749331841197,-294.93039998,0.00019972,2]
[364944655,1749331841208,-502.03719031,0.00019973,2]
[364944656,1749331841218,-500.0,0.00019973,2]
[364944657,1749331841227,-500.0,0.00019973,2]
[364944658,1749331841237,-500.0,0.00019973,2]
[364944659,1749331841247,-115238.96665214,0.0001998,2]
[364944660,1749331841257,-156.43932318,0.00019985,2]
[364944661,1749331841267,-43263.5525333,0.00019986,2]
[364944662,1749331841276,-52549.7808,0.00019986,2]
[364944663,1749331841286,-61836.0090666,0.00019986,2]
[364944664,1749331841295,-71122.2373333,0.00019986,2]
[364944665,1749331841305,-10371.7752033,0.00019986,2]
[364944666,1749331841315,-10832.9003372,0.00019986,2]
[364944667,1749331841325,-11294.025471,0.00019986,2]
[364944668,1749331841334,-11755.1506049,0.00019986,2]
[364944669,1749331841343,-12216.2757387,0.00019986,2]
[364944670,1749331841353,-1540.5965153,0.00019986,2]
[364944671,1749331841362,-1609.0908435,0.00019986,2]
[364944672,1749331841372,-1677.5851716,0.00019986,2]
[364944673,1749331841382,-1746.0794998,0.00019986,2]
[364944674,1749331841392,-1814.5738279,0.00019986,2]
[364944675,1749331841402,-38637.484381,0.00019986,2]
[364944676,1749331841411,-36557.5727346,0.00019986,2]
[364944677,1749331841420,-34477.6610883,0.00019986,2]
[364944678,1749331841430,-32397.749442,0.00019986,2]
[364944679,1749331841440,-30317.8377956,0.00019986,2]
[364944680,1749331841450,-4480.6915006,0.00019986,2]
[364944681,1749331841459,-4239.4893989,0.00019986,2]
[364944682,1749331841469,-3998.2872972,0.00019986,2]
[364944683,1749331841478,-3757.0851956,0.00019986,2]
[364944684,1749331841488,-3515.8830939,0.00019986,2]
[364944685,1749331841499,-5763.7510942,0.00019986,2]
[364944686,1749331841509,-5463.6398564,0.00019986,2]
[364944687,1749331841518,-5163.5286187,0.00019986,2]
[364944688,1749331841528,-4863.4173809,0.00019986,2]
[364944689,1749331841538,-4563.3061432,0.00019986,2]
[364944690,1749331841548,-250.0,0.0001999,2]
[364944691,1749331841558,-155.86872249,0.0001999,2]
[364944692,1749331841567,-83555.76967407,0.00019995,2]
[364944693,1749331841576,-2000.0,0.00019999,2]
[364944694,1749331841585,-2000.0,0.00019999,2]
[364944695,1749331841596,-991.2476,0.00019999,2]
[364944696,1749331841607,-2000.0,0.00019999,2]
[364944697,1749331841616,-1000.0,0.00019999,2]
[364944698,1749331841626,-2000.0,0.00019999,2]
[364944699,1749331841637,-2000.0,0.00019999,2]
[364944700,1749331841646,-2000.0,0.00019999,2]
[364944701,1749331841655,-1000.0,0.00019999,2]
[364944702,1749331841665,-1195.45500749,0.0002,2]
[364944703,1749331841678,-297270.66633371,0.0002,2]
[364944704,1749331841694,-10000.0,0.0002,2]
[364944705,1749331841703,-1418.69957792,0.0002,5]
[364944706,1749331841712,-11897.70031602,0.0002,2]
[364944707,1749331841722,-3013.79559055,0.0002,2]
[364944708,1749331841731,-152.0,0.0002,2]
[364944709,1749331841740,-1489.21277906,0.0002,2]
[364944710,1749331841750,-2669950.7451655,0.0002,2]
[364944711,1749331841759,-863664.68461323,0.0002,2]
[364944712,1749331841768,-14395.309999,0.0002,2]
[364944713,1749331841778,-302108.41161249,0.0002,2]
[364944714,1749331841787,-111788.32879079,0.0002,4]
[364944715,1749331841796,-660957.08337183,0.0002,2]
[364944716,1749331841806,-426.05843774,0.0002,2]
[364944717,1749331841816,-387.0,0.0002,2]
[364944718,1749331841825,-865328.94560871,0.0002,2]
[364944719,1749331841834,-462103.02534413,0.0002,2]
[364944720,1749331841843,-2000.0,0.0002,2]
[364944721,1749331841853,-637058.83757977,0.0002,2]
[364944722,1749331841862,-12816.56227354,0.0002,30]
[364944723,1749331841872,-873549.72666965,0.0002,2]
[364944724,1749331841921,-2414.7345374,0.0002,2]
[364944726,1749331842214,-500.0,0.00019141,2]
[364944728,1749331842223,-500.0,0.00019141,2]
[364944729,1749331842233,-500.0,0.00019141,2]
[364944730,1749331842243,-500.0,0.00019141,2]
[364944731,1749331842252,-500.0,0.00019141,2]
[364944732,1749331842262,-500.0,0.00019141,2]
[364944733,1749331842271,-500.0,0.00019141,2]
[364944734,1749331842283,-375.9566835,0.00019141,2]
[364944735,1749331842292,-152.0673165,0.00019141,2]
[364944736,1749331842303,-347.9326835,0.00019141,2]
[364944737,1749331842313,-500.0,0.00019141,2]
[364944738,1749331842323,-500.0,0.00019141,2]
[364944740,1749331842334,-250.98739253,0.00019251,2]
[364944741,1749331842344,-30067.92289823,0.0002,2]
[364944742,1749331842369,-500.0,0.00019141,2]
[364944743,1749331842378,-359.42407319,0.0002,2]
[364944744,1749331842391,-8332.46910127,0.0002,2]
[364944745,1749331842406,-10116.99999999,0.0002,2]
[364944746,1749331842418,-1008.4,0.0002,2]
[364944750,1749331842874,-155.0,0.00019142,2]
[364944751,1749331842885,-161.84161104,0.00019213,2]
[364944752,1749331842896,-338.98338896,0.0002,2]
[364944758,1749331845762,-250.98739253,0.00019256,2]
[364944759,1749331845773,-161.84161104,0.00019294,2]
[364944760,1749331845784,-267.05096662,0.0002,2]
[364944761,1749331845796,-13948.16734233,0.0002,2]
[364944762,1749331845811,-48736.466174,0.0002,2]
[364944848,1749331889084,609.93,0.00016735,2]
[364944850,1749331906771,318.76,0.00013699,2]
[364944853,1749332551261,2811.26074594,0.00017056,2]
[364944863,1749332901417,287.34158577,0.00016402,2]
[364944864,1749332901441,292.08841423,0.00016402,2]
[364944865,1749332911624,1146.561,0.00017056,2]
[364944868,1749333011904,200.0,0.00016645,2]
[364944870,1749333031899,-200.0,0.00017608,3]
[364944871,1749333031909,-200.0,0.00018,2]
[364944872,1749333031919,-979.0,0.0001822,2]
[364944873,1749333031929,-2502.13,0.0001832,2]
[364944874,1749333031938,-156.68,0.00018402,2]
[364944875,1749333031948,-250.0,0.0001847,2]
[364944876,1749333031957,-200.0,0.00018572,4]
[364944877,1749333031967,-1200.0,0.00018607,2]
[364944878,1749333031976,-5600.25830301,0.00018608,2]
[364944879,1749333031985,-168.12,0.00018661,2]
[364944880,1749333031995,-1000.0,0.00018663,2]
[364944881,1749333032004,-579.43,0.00018666,2]
[364944882,1749333032016,-300.0,0.00018686,2]
[364944883,1749333032026,-300.0,0.00018686,2]
[364944884,1749333032035,-414.36,0.0001872,2]
[364944885,1749333032044,-150.0,0.00018725,7]
[364944886,1749333032053,-151.0,0.00018989,2]
[364944887,1749333032064,-1037.0,0.00018989,2]
[364944888,1749333032075,-207.4,0.00018989,2]
[364944890,1749333032084,-208.4396315,0.00018999,2]
[364944892,1749333032095,-500.0,0.00018999,2]
[364944894,1749333032105,-427.26302833,0.00018999,2]
[364944896,1749333032117,-8363.74,0.00019,2]
[364944898,1749333032127,-8363.74,0.00019,2]
[364944900,1749333032137,-7535.31855195,0.00019,2]
[364944920,1749333037645,-828.42144805,0.00019,2]
[364944921,1749333037655,-4513.82202704,0.00019,2]
[364944922,1749333037668,-8031.79797296,0.00019,2]
[364944923,1749333037681,-12545.62,0.00019,2]
[364944924,1749333037691,-12545.62,0.00019,2]
[364944925,1749333037701,-250.0,0.00019,2]
[364944926,1749333037712,-1500.0,0.00019178,2]
[364944927,1749333037723,-1162.98,0.00019178,2]
[364944928,1749333037732,-1000.0,0.00019209,2]
[364944929,1749333037743,-1164.0,0.00019223,2]
[364944930,1749333037754,-944.0,0.00019223,2]
[364944931,1749333037766,-636.0,0.00019223,2]
[364944932,1749333037777,-801.0,0.00019223,2]
[364944933,1749333037787,-557.0,0.00019223,2]
[364944934,1749333037798,-926.0,0.00019223,2]
[364944935,1749333037811,-2017.185,0.00019223,2]
[364944936,1749333037822,-589.0,0.00019223,2]
[364944937,1749333037831,-1274.0,0.00019223,2]
[364944938,1749333037843,-1255.0,0.00019223,2]
[364944939,1749333037852,-883.0,0.00019223,2]
[364944940,1749333037862,-212.454,0.00019223,2]
[364944942,1749333037872,-7018.0,0.00019223,2]
[364944943,1749333037881,-4082.0,0.00019223,2]
[364944945,1749333037892,-15457.72580021,0.00019353,2]
[364944947,1749333037901,-611.877,0.00019354,2]
[364944949,1749333037911,-466.55,0.00019393,2]
[364944951,1749333037921,-4558.5914223,0.00019474,2]
[364944952,1749333037931,-305.45,0.00019488,2]
[364944953,1749333037941,-304.22,0.00019488,2]
[364944954,1749333037951,-304.65,0.00019488,2]
[364944955,1749333037961,-302.23,0.00019488,2]
[364944956,1749333037971,-304.3,0.00019488,2]
[364944957,1749333037980,-301.19,0.00019488,2]
[364944958,1749333037990,-302.61,0.00019488,2]
[364944959,1749333037999,-302.63,0.00019488,2]
[364944960,1749333038009,-301.1,0.00019488,2]
[364944961,1749333038024,-302.54,0.00019488,2]
[364944962,1749333038034,-8363.74,0.000195,2]
[364944963,1749333038044,-12545.62,0.000195,2]
[364944964,1749333038055,-4546.56402779,0.00019521,2]
[364944965,1749333038067,-12.02739445,0.00019521,2]
[364944966,1749333038077,-200.0,0.00019535,5]
[364944967,1749333038087,-4558.59142224,0.00019569,2]
[364944968,1749333038097,-12055.7792222,0.00019571,2]
[364944969,1749333038106,-303.22,0.00019588,2]
[364944970,1749333038116,-301.56,0.00019588,2]
[364944971,1749333038125,-302.13,0.00019588,2]
[364944972,1749333038137,-305.83,0.00019588,2]
[364944973,1749333038147,-301.12,0.00019588,2]
[364944974,1749333038158,-304.92,0.00019588,2]
[364944975,1749333038168,-303.97,0.00019588,2]
[364944976,1749333038180,-303.13,0.00019588,2]
[364944977,1749333038189,-304.43,0.00019588,2]
[364944978,1749333038199,-305.11,0.00019588,2]
[364944979,1749333038210,-202.575429,0.00019599,2]
[364944980,1749333038221,-1116.39444225,0.000196,2]
[364944981,1749333038232,-1131.53133705,0.000196,2]
[364944982,1749333038242,-1016.92026976,0.000196,2]
[364944983,1749333038252,-1060.56751304,0.000196,2]
[364944984,1749333038262,-1094.00133994,0.000196,2]
[364944985,1749333038273,-1132.5081179,0.000196,2]
[364944986,1749333038283,-1095.21448573,0.000196,2]
[364944987,1749333038294,-970.96805555,0.000196,2]
[364944988,1749333038304,-376.0,0.000196,2]
[364944989,1749333038313,-768.0,0.000196,2]
[364944990,1749333038323,-237.0,0.000196,2]
[364944991,1749333038333,-4558.59142224,0.00019616,2]
[364944992,1749333038343,-302.2,0.00019636,2]
[364944993,1749333038353,-304.53,0.00019636,2]
[364944994,1749333038363,-302.03,0.00019636,2]
[364944995,1749333038373,-300.73,0.00019636,2]
[364944996,1749333038383,-302.73,0.00019636,2]
[364944997,1749333038394,-303.14,0.00019636,2]
[364944998,1749333038404,-4558.59142224,0.00019663,2]
[364944999,1749333038413,-1000.0,0.00019686,2]
[364945000,1749333038423,-304.46,0.00019687,2]
[364945001,1749333038433,-300.57,0.00019687,2]
[364945002,1749333038443,-304.47,0.00019687,2]
[364945003,1749333038452,-302.37,0.00019687,2]
[364945004,1749333038462,-301.43,0.00019687,2]
[364945005,1749333038471,-305.29,0.00019687,2]
[364945006,1749333038481,-304.46,0.00019687,2]
[364945007,1749333038491,-302.99,0.00019687,2]
[364945008,1749333038500,-304.23,0.00019687,2]
[364945009,1749333038511,-304.43,0.00019687,2]
[364945010,1749333038521,-1000.0,0.00019698,2]
[364945011,1749333038531,-2129.4,0.000197,2]
[364945012,1749333038541,-223.74292788,0.00019704,2]
[364945013,1749333038550,-4558.59142224,0.00019711,2]
[364945014,1749333038560,-5694.73091664,0.00019711,2]
[364945015,1749333038571,-223.74292788,0.00019726,2]
[364945016,1749333038580,-150.0,0.00019732,2]